Workbook

Sheet Cover
B3: Algorithmen
B4: für Ingenieure
B7: Kapitel | C7: 2
B8: Thema | C8: Zerlegung eines Polynoms
B10: Inhalt | C10: Grafische Betrachtung
C11: Polynome
C12: Geraden
C13: Horner-Schema
B16: Version | C16: 1.0
B17: Autor | C17: Harald Nahrstedt
B18: Datum | C18: 2025-06-15
B21: Springer Vieweg Verlag

Sheet Polynome
A1: x | B1: y1 | C1: y2 | D1: y3 | F1: y1= | G1: =G$2*G$3 -> 2 | H1: x^4 | I1: + | J1: =G$2*J$3+J$2*G$3 -> -1 | K1: x^3 | L1: + | M1: =G$2*M$3+G$3*M$2+J$2*J$3 -> -6 | N1: x^2 | O1: + | P1: =J$2*M$3+J$3*M$2 -> 2 | Q1: x | R1: + | S1: =M$2*M$3 -> 3
A2: -2 | B2: =G$1*A2^4+J$1*A2^3+M$1*A2^2+P$1*A2+S$1 -> 15 | C2: =G$2*A2^2+J$2*A2+M$2 -> 3 | D2: =G$3*A2^2+J$3*A2+M$3 -> 5 | F2: y2= | G2: 2 | H2: x^2 | I2: + | J2: 1 | K2: x | L2: + | M2: -3
A3: -1.9 | B3: =G$1*A3^4+J$1*A3^3+M$1*A3^2+P$1*A3+S$1 -> 10.4632 | C3: =G$2*A3^2+J$2*A3+M$2 -> 2.32 | D3: =G$3*A3^2+J$3*A3+M$3 -> 4.51 | F3: y3= | G3: 1 | H3: x^2 | I3: + | J3: -1 | K3: x | L3: + | M3: -1
A4: -1.8 | B4: 6.7872 | C4: 1.68 | D4: 4.04
A5: -1.7 | B5: 3.8772 | C5: 1.08 | D5: 3.59
A6: -1.6 | B6: 1.6432 | C6: 0.52 | D6: 3.16
A7: -1.5 | B7: 0 | C7: 0 | D7: 2.75
A8: -1.4 | B8: -1.1328 | C8: -0.48 | D8: 2.36
A9: -1.3 | B9: -1.8308 | C9: -0.92 | D9: 1.99
A10: -1.2 | B10: -2.1648 | C10: -1.32 | D10: 1.64
A11: -1.1 | B11: -2.2008 | C11: -1.68 | D11: 1.31
A12: -1 | B12: -2 | C12: -2 | D12: 1
A13: -0.9 | B13: -1.6188 | C13: -2.28 | D13: 0.71
A14: -0.8 | B14: -1.1088 | C14: -2.52 | D14: 0.44
A15: -0.7 | B15: -0.5168 | C15: -2.72 | D15: 0.19
A16: -0.6 | B16: 0.1152 | C16: -2.88 | D16: -0.04
A17: -0.5 | B17: 0.75 | C17: -3 | D17: -0.25
A18: -0.4 | B18: 1.3552 | C18: -3.08 | D18: -0.44
A19: -0.3 | B19: 1.9032 | C19: -3.12 | D19: -0.61
A20: -0.2 | B20: 2.3712 | C20: -3.12 | D20: -0.76
A21: -0.1 | B21: 2.7412 | C21: -3.08 | D21: -0.89
A22: 0 | B22: 3 | C22: -3 | D22: -1
A23: 0.1 | B23: 3.1392 | C23: -2.88 | D23: -1.09
A24: 0.2 | B24: 3.1552 | C24: -2.72 | D24: -1.16
A25: 0.3 | B25: 3.0492 | C25: -2.52 | D25: -1.21
A26: 0.4 | B26: 2.8272 | C26: -2.28 | D26: -1.24
A27: 0.5 | B27: 2.5 | C27: -2 | D27: -1.25
A28: 0.6 | B28: 2.0832 | C28: -1.68 | D28: -1.24
A29: 0.7 | B29: 1.5972 | C29: -1.32 | D29: -1.21
A30: 0.8 | B30: 1.0672 | C30: -0.92 | D30: -1.16
A31: 0.9 | B31: 0.5232 | C31: -0.48 | D31: -1.09
A32: 1 | B32: 0 | C32: 0 | D32: -1
A33: 1.1 | B33: -0.4628 | C33: 0.52 | D33: -0.89
A34: 1.2 | B34: -0.8208 | C34: 1.08 | D34: -0.76
A35: 1.3 | B35: -1.0248 | C35: 1.68 | D35: -0.61
A36: 1.4 | B36: -1.0208 | C36: 2.32 | D36: -0.44
A37: 1.5 | B37: -0.75 | C37: 3 | D37: -0.25
A38: 1.6 | B38: -0.1488 | C38: 3.72 | D38: -0.04
A39: 1.7 | B39: 0.8512 | C39: 4.48 | D39: 0.19
A40: 1.8 | B40: 2.3232 | C40: 5.28 | D40: 0.44
A41: 1.9 | B41: 4.3452 | C41: 6.12 | D41: 0.71
A42: 2 | B42: 7 | C42: 7 | D42: 1

Sheet Geraden
A1: x | B1: y1 | C1: y2 | D1: y3 | F1: y1= | G1: =G$2*G$3 -> 12 | H1: x^2 | I1: + | J1: =G$2*J$3+J$2*G$3 -> -2 | K1: x | L1: + | M1: =J$2*J$3 -> -2
A2: -2 | B2: =G$1*A2^2+J$1*A2+M$1 -> 50 | C2: =G$2*A2+J$2 -> -5 | D2: =G$3*A2+J$3 -> -10 | F2: y2= | G2: 3 | H2: x | I2: + | J2: 1
A3: -1.9 | B3: =G$1*A3^2+J$1*A3+M$1 -> 45.12 | C3: =G$2*A3+J$2 -> -4.7 | D3: =G$3*A3+J$3 -> -9.6 | F3: y3= | G3: 4 | H3: x | I3: + | J3: -2
A4: -1.8 | B4: 40.48 | C4: -4.4 | D4: -9.2
A5: -1.7 | B5: 36.08 | C5: -4.1 | D5: -8.8
A6: -1.6 | B6: 31.92 | C6: -3.8 | D6: -8.4
A7: -1.5 | B7: 28 | C7: -3.5 | D7: -8
A8: -1.4 | B8: 24.32 | C8: -3.2 | D8: -7.6
A9: -1.3 | B9: 20.88 | C9: -2.9 | D9: -7.2
A10: -1.2 | B10: 17.68 | C10: -2.6 | D10: -6.8
A11: -1.1 | B11: 14.72 | C11: -2.3 | D11: -6.4
A12: -1 | B12: 12 | C12: -2 | D12: -6
A13: -0.9 | B13: 9.52 | C13: -1.7 | D13: -5.6
A14: -0.8 | B14: 7.28 | C14: -1.4 | D14: -5.2
A15: -0.7 | B15: 5.28 | C15: -1.1 | D15: -4.8
A16: -0.6 | B16: 3.52 | C16: -0.8 | D16: -4.4
A17: -0.5 | B17: 2 | C17: -0.5 | D17: -4
A18: -0.4 | B18: 0.72 | C18: -0.2 | D18: -3.6
A19: -0.3 | B19: -0.32 | C19: 0.1 | D19: -3.2
A20: -0.2 | B20: -1.12 | C20: 0.4 | D20: -2.8
A21: -0.1 | B21: -1.68 | C21: 0.7 | D21: -2.4
A22: 0 | B22: -2 | C22: 1 | D22: -2
A23: 0.1 | B23: -2.08 | C23: 1.3 | D23: -1.6
A24: 0.2 | B24: -1.92 | C24: 1.6 | D24: -1.2
A25: 0.3 | B25: -1.52 | C25: 1.9 | D25: -0.8
A26: 0.4 | B26: -0.88 | C26: 2.2 | D26: -0.4
A27: 0.5 | B27: 0 | C27: 2.5 | D27: 0
A28: 0.6 | B28: 1.12 | C28: 2.8 | D28: 0.4
A29: 0.7 | B29: 2.48 | C29: 3.1 | D29: 0.8
A30: 0.8 | B30: 4.08 | C30: 3.4 | D30: 1.2
A31: 0.9 | B31: 5.92 | C31: 3.7 | D31: 1.6
A32: 1 | B32: 8 | C32: 4 | D32: 2
A33: 1.1 | B33: 10.32 | C33: 4.3 | D33: 2.4
A34: 1.2 | B34: 12.88 | C34: 4.6 | D34: 2.8
A35: 1.3 | B35: 15.68 | C35: 4.9 | D35: 3.2
A36: 1.4 | B36: 18.72 | C36: 5.2 | D36: 3.6
A37: 1.5 | B37: 22 | C37: 5.5 | D37: 4
A38: 1.6 | B38: 25.52 | C38: 5.8 | D38: 4.4
A39: 1.7 | B39: 29.28 | C39: 6.1 | D39: 4.8
A40: 1.8 | B40: 33.28 | C40: 6.4 | D40: 5.2
A41: 1.9 | B41: 37.52 | C41: 6.7 | D41: 5.6
A42: 2 | B42: 42 | C42: 7 | D42: 6

Sheet Beispiel
A1: 0 | B1: =2*A1^3-6*A1^2+2*A1-1 -> -1
A2: 0.5 | B2: =2*A2^3-6*A2^2+2*A2-1 -> -1.25
A3: 1 | B3: =2*A3^3-6*A3^2+2*A3-1 -> -3
A4: 1.5 | B4: =2*A4^3-6*A4^2+2*A4-1 -> -4.75
A5: 2 | B5: =2*A5^3-6*A5^2+2*A5-1 -> -5
A6: 2.5 | B6: =2*A6^3-6*A6^2+2*A6-1 -> -2.25
A7: 3 | B7: =2*A7^3-6*A7^2+2*A7-1 -> 5
A8: 3.5 | B8: =2*A8^3-6*A8^2+2*A8-1 -> 18.25
A9: 4 | B9: =2*A9^3-6*A9^2+2*A9-1 -> 39
